[Event "LJ Slovak Open 2022"]
[Site "Liptovsky Jan"]
[Date "2022.06.26"]
[Round "6.20"]
[White "Goga, Frantisek"]
[Black "Mrkvik, Jan"]
[Result "0-1"]
[ECO "B12"]
[WhiteElo "1900"]
[BlackElo "1810"]
[Annotator "NA RC"]
[PlyCount "54"]
[EventDate "2022.06.23"]
[EventType "swiss"]
[EventCountry "SVK"]
[SourceTitle "playchess.com"]
[Source "ChessBase"]
[SourceQuality "1"]
[TimeControl "3600+30"]

1. e4 {[%emt 0:11:10]} c6 {[%emt 0:00:06]} 2. d4 {[%emt 0:00:13]} d5 {[%emt 0:00:05]} 3. e5 {[%emt 0:00:06]} Bf5 {[%emt 0:00:04]} 4. Ne2 {[%emt 0:00:20]} e6 {[%emt 0:00:45]} 5. Ng3 {[%emt 0:00:14]} Bg6 {[%emt 0:00:05]} 6. h4 {[%emt 0:00:15]} h6 {[%emt 0:00:42]} 7. h5 {[%emt 0:00:31]} Bh7 {[%emt 0:00:04]} 8. Bd3 {[%emt 0:00:22]} Bxd3 {[%emt 0:00:05]} 9. cxd3 {[%emt 0:00:22]} c5 {[%emt 0:00:21]} 10. dxc5 {[%emt 0:01:18]} d4 {[%emt 0:06:19]} 11. Ne4 {[%emt 0:03:02]} Qd5 {[%emt 0:00:17]} 12. Qb3 {[%emt 0:05:30]} Bxc5 {[%emt 0:05:41]} 13. Nxc5 {[%emt 0:06:07]} Qxc5 {[%emt 0:00:04]} 14. O-O {[%emt 0:01:10]} Nc6 {[%emt 0:05:11]} 15. Qxb7 {[%emt 0:04:21]} Rb8 {[%emt 0:00:05]} 16. Qc7 {[%emt 0:00:24]} Nge7 {[%emt 0:02:05]} 17. Nd2 {[%emt 0:01:23]} Qxe5 {[%emt 0:00:50]} 18. Qxe5 {[%emt 0:00:37]} Nxe5 {[%emt 0:00:03]} 19. Nb3 {[%emt 0:00:27]} Nxd3 {[%emt 0:03:17]} 20. Nxd4 {[%emt 0:02:36]} O-O {[%emt 0:01:10]} 21. b3 {[%emt 0:01:50]} e5 {[%emt 0:02:07]} 22. Ba3 {[%emt 0:04:57]} exd4 {[%emt 0:02:07]} 23. Rad1 {[%emt 0:02:29]} Nb4 {[%emt 0:00:06]} 24. Rxd4 {[%emt 0:00:59]} a5 {[%emt 0:00:26]} 25. Rd7 {[%emt 0:01:33]} Nec6 {[%emt 0:00:28]} 26. Rc1 {[%emt 0:00:45]} Rfd8 {[%emt 0:01:34]} 27. Rc7 {[%emt 0:00:43]} Nd4 {[%emt 0:03:55]} 0-1

[Event "LJ Slovak Open 2022"]
[Site "Liptovsky Jan"]
[Date "2022.06.26"]
[Round "6.21"]
[White "Rak, Martin"]
[Black "Lis, Maksymilian"]
[Result "1-0"]
[ECO "B01"]
[WhiteElo "1849"]
[BlackElo "1511"]
[Annotator "NA RC"]
[PlyCount "99"]
[EventDate "2022.06.23"]
[EventType "swiss"]
[EventCountry "SVK"]
[SourceTitle "playchess.com"]
[Source "ChessBase"]
[SourceQuality "1"]
[TimeControl "3600+30"]

1. e4 {[%emt 0:00:02]} d5 {[%emt 0:02:34]} 2. exd5 {[%emt 0:00:02]} Qxd5 {[%emt 0:00:06]} 3. Nc3 {[%emt 0:00:10]} Qd8 {[%emt 0:00:04]} 4. Nf3 {[%emt 0:00:08]} Nf6 {[%emt 0:00:04]} 5. Bc4 {[%emt 0:00:06]} e6 {[%emt 0:00:25]} 6. d4 {[%emt 0:00:28]} a6 {[%emt 0:00:05]} 7. O-O {[%emt 0:02:02]} b5 {[%emt 0:00:04]} 8. Bd3 {[%emt 0:00:04]} c5 {[%emt 0:00:17]} 9. dxc5 {[%emt 0:01:31]} Bxc5 {[%emt 0:00:27]} 10. Ne4 {[%emt 0:02:26]} Nxe4 {[%emt 0:00:33]} 11. Bxe4 {[%emt 0:00:03]} Qxd1 {[%emt 0:00:05]} 12. Rxd1 {[%emt 0:00:11]} Ra7 {[%emt 0:00:03]} 13. Bf4 {[%emt 0:09:03]} Nd7 {[%emt 0:00:04]} 14. Ne5 {[%emt 0:02:17]} Nxe5 {[%emt 0:03:23]} 15. Bxe5 {[%emt 0:01:22]} f6 {[%emt 0:00:38]} 16. Bd4 {[%emt 0:04:22]} Bxd4 {[%emt 0:00:29]} 17. Rxd4 {[%emt 0:00:01]} Ke7 {[%emt 0:00:18]} 18. a4 {[%emt 0:01:05]} Rd7 {[%emt 0:00:39]} 19. Rb4 {[%emt 0:06:49]} Rhd8 {[%emt 0:09:21]} 20. Bd3 {[%emt 0:00:44]} bxa4 {[%emt 0:02:10]} 21. Rbxa4 {[%emt 0:08:00]} Rd4 {[%emt 0:00:11]} 22. Kf1 {[%emt 0:00:28]} Rxa4 {[%emt 0:00:12]} 23. Rxa4 {[%emt 0:00:30]} Rd6 {[%emt 0:00:07]} 24. Rg4 {[%emt 0:05:39]} Kf7 {[%emt 0:00:18]} 25. Rc4 {[%emt 0:01:36]} Bd7 {[%emt 0:00:05]} 26. Rc7 {[%emt 0:00:20]} Ke8 {[%emt 0:00:14]} 27. Ra7 {[%emt 0:01:13]} Bb5 {[%emt 0:02:57]} 28. Bxb5+ {[%emt 0:00:53]} axb5 {[%emt 0:00:04]} 29. Rxg7 {[%emt 0:00:27]} Rd2 {[%emt 0:00:03]} 30. Rc7 {[%emt 0:01:22]} Kd8 {[%emt 0:00:29]} 31. Rc3 {[%emt 0:01:13]} Ke7 {[%emt 0:00:42]} 32. Ke1 {[%emt 0:01:40]} Rd7 {[%emt 0:00:05]} 33. Rh3 {[%emt 0:00:58]} Ke8 {[%emt 0:00:05]} 34. Rh6 {[%emt 0:00:35]} Rf7 {[%emt 0:00:05]} 35. Kd2 {[%emt 0:01:26]} Kd7 {[%emt 0:00:04]} 36. Kc3 {[%emt 0:00:34]} Kc6 {[%emt 0:00:03]} 37. Kb4 {[%emt 0:00:31]} Kb6 {[%emt 0:00:05]} 38. f4 {[%emt 0:00:45]} Kc6 {[%emt 0:00:13]} 39. Rh5 {[%emt 0:01:26]} f5 {[%emt 0:00:09]} 40. Rh3 {[%emt 0:00:56]} Rd7 {[%emt 0:00:28]} 41. Rd3 {[%emt 0:01:32]} Ra7 {[%emt 0:00:25]} 42. Ra3 {[%emt 0:01:00]} Rd7 {[%emt 0:00:36]} 43. Ra6+ {[%emt 0:00:07]} Kd5 {[%emt 0:00:14]} 44. Kxb5 {[%emt 0:00:32]} Rc7 {[%emt 0:01:08]} 45. c4+ {[%emt 0:01:02]} Kd4 {[%emt 0:00:10]} 46. Rd6+ {[%emt 0:00:42]} Ke4 {[%emt 0:00:07]} 47. Rxe6+ {[%emt 0:00:09]} Kxf4 {[%emt 0:00:03]} 48. c5 {[%emt 0:00:30]} Rg7 {[%emt 0:00:03]} 49. g3+ {[%emt 0:00:09]} Kf3 {[%emt 0:00:04]} 50. c6 {[%emt 0:00:39]} 1-0

[Event "LJ Slovak Open 2022"]
[Site "Liptovsky Jan"]
[Date "2022.06.26"]
[Round "6.22"]
[White "Kulich, Daniel"]
[Black "Janik, Marek Tobias"]
[Result "1/2-1/2"]
[ECO "D36"]
[WhiteElo "1648"]
[BlackElo "1840"]
[Annotator "NA RC"]
[PlyCount "79"]
[EventDate "2022.06.23"]
[EventType "swiss"]
[EventCountry "SVK"]
[SourceTitle "playchess.com"]
[Source "ChessBase"]
[SourceQuality "1"]
[TimeControl "3600+30"]

1. d4 {[%emt 0:00:02]} d5 {[%emt 0:00:59]} 2. c4 {[%emt 0:00:10]} e6 {[%emt 0:00:03]} 3. Nc3 {[%emt 0:00:10]} Nf6 {[%emt 0:00:05]} 4. cxd5 {[%emt 0:00:21]} exd5 {[%emt 0:00:05]} 5. Bg5 {[%emt 0:00:10]} Nbd7 {[%emt 0:00:12]} 6. e3 {[%emt 0:00:19]} c6 {[%emt 0:00:15]} 7. Bd3 {[%emt 0:00:12]} Bd6 {[%emt 0:00:36]} 8. Nf3 {[%emt 0:00:29]} h6 {[%emt 0:00:25]} 9. Bh4 {[%emt 0:00:10]} O-O {[%emt 0:01:20]} 10. O-O {[%emt 0:00:11]} Re8 {[%emt 0:00:24]} 11. Qc2 {[%emt 0:01:27]} Qc7 {[%emt 0:00:52]} 12. a3 {[%emt 0:02:03]} a6 {[%emt 0:03:35]} 13. b4 {[%emt 0:00:40]} b5 {[%emt 0:02:12]} 14. Rfc1 {[%emt 0:04:19]} Bb7 {[%emt 0:01:31]} 15. Bg3 {[%emt 0:14:27]} Bxg3 {[%emt 0:02:34]} 16. hxg3 {[%emt 0:00:02]} Qd6 {[%emt 0:00:30]} 17. Ne2 {[%emt 0:05:40]} Ne4 {[%emt 0:02:34]} 18. Nd2 {[%emt 0:00:59]} Ndf6 {[%emt 0:00:43]} 19. Nc3 {[%emt 0:00:42]} Qe6 {[%emt 0:14:08]} 20. Ncxe4 {[%emt 0:02:06]} dxe4 {[%emt 0:01:05]} 21. Be2 {[%emt 0:00:33]} Rac8 {[%emt 0:04:10]} 22. Nb3 {[%emt 0:00:48]} Nd7 {[%emt 0:00:12]} 23. Qd1 {[%emt 0:01:53]} f5 {[%emt 0:02:09]} 24. Rc3 {[%emt 0:02:19]} Qf7 {[%emt 0:07:04]} 25. Rac1 {[%emt 0:01:10]} Nb6 {[%emt 0:04:28]} 26. Nc5 {[%emt 0:01:53]} Nd5 {[%emt 0:00:10]} 27. R3c2 {[%emt 0:01:18]} Qe7 {[%emt 0:02:49]} 28. Nb3 {[%emt 0:08:24]} Rf8 {[%emt 0:01:24]} 29. Rc5 {[%emt 0:01:11]} Rf6 {[%emt 0:00:46]} 30. Na5 {[%emt 0:00:40]} Rd6 {[%emt 0:00:25]} 31. Qd2 {[%emt 0:02:29]} Kh8 {[%emt 0:01:48]} 32. Bd1 {[%emt 0:01:49]} Qd7 {[%emt 0:00:51]} 33. Bb3 {[%emt 0:01:22]} Ne7 {[%emt 0:00:37]} 34. Qc2 {[%emt 0:03:21]} Ba8 {[%emt 0:01:22]} 35. Qa2 {[%emt 0:03:13]} Rf8 {[%emt 0:02:55]} 36. Qc2 {[%emt 0:01:25]} Rc8 {[%emt 0:00:21]} 37. Qc3 {[%emt 0:01:54]} Rd8 {[%emt 0:04:26]} 38. Qc2 {[%emt 0:01:09]} Rc8 {[%emt 0:00:33]} 39. Ba2 {[%emt 0:03:23]} Rd8 {[%emt 0:01:09]} 40. Bb3 {[%emt 0:03:45]} 1/2-1/2

[Event "LJ Slovak Open 2022"]
[Site "Liptovsky Jan"]
[Date "2022.06.26"]
[Round "6.23"]
[White "Harvan, Tomas"]
[Black "Miciak, Emanuel"]
[Result "1-0"]
[ECO "C10"]
[WhiteElo "1853"]
[BlackElo "1804"]
[Annotator "NA RC"]
[PlyCount "130"]
[EventDate "2022.06.23"]
[EventType "swiss"]
[EventCountry "SVK"]
[SourceTitle "playchess.com"]
[Source "ChessBase"]
[SourceQuality "1"]
[TimeControl "3600+30"]

1. e4 {[%emt 0:00:08]} e6 {[%emt 0:00:08]} 2. d4 {[%emt 0:00:06]} d5 {[%emt 0:00:03]} 3. Nd2 {[%emt 0:00:10]} dxe4 {[%emt 0:00:22]} 4. Nxe4 {[%emt 0:00:10]} Nd7 {[%emt 0:00:17]} 5. Nf3 {[%emt 0:00:56]} Ngf6 {[%emt 0:00:16]} 6. Nxf6+ {[%emt 0:00:09]} Nxf6 {[%emt 0:00:14]} 7. Bd3 {[%emt 0:00:46]} Be7 {[%emt 0:00:44]} 8. O-O {[%emt 0:00:40]} O-O {[%emt 0:04:56]} 9. c3 {[%emt 0:00:16]} b6 {[%emt 0:00:32]} 10. Qe2 {[%emt 0:04:24]} Bb7 {[%emt 0:01:18]} 11. Re1 {[%emt 0:04:20]} Rc8 {[%emt 0:05:08]} 12. Bg5 {[%emt 0:04:21]} Bxf3 {[%emt 0:06:59]} 13. Qxf3 {[%emt 0:02:25]} Qd5 {[%emt 0:00:09]} 14. Qxd5 {[%emt 0:01:07]} Nxd5 {[%emt 0:00:14]} 15. Bd2 {[%emt 0:02:21]} Bd6 {[%emt 0:04:23]} 16. g3 {[%emt 0:01:57]} c5 {[%emt 0:03:56]} 17. Ba6 {[%emt 0:11:55]} Rc7 {[%emt 0:02:58]} 18. dxc5 {[%emt 0:09:24]} Bxc5 {[%emt 0:03:28]} 19. c4 {[%emt 0:02:58]} Nb4 {[%emt 0:06:44]} 20. Bxb4 {[%emt 0:00:06]} Bxb4 {[%emt 0:00:02]} 21. Red1 {[%emt 0:00:36]} Be7 {[%emt 0:00:54]} 22. Rd3 {[%emt 0:00:38]} Rd8 {[%emt 0:00:34]} 23. Rxd8+ {[%emt 0:00:49]} Bxd8 {[%emt 0:00:02]} 24. Rd1 {[%emt 0:02:20]} Bf6 {[%emt 0:01:05]} 25. Rd3 {[%emt 0:02:13]} Kf8 {[%emt 0:00:39]} 26. b4 {[%emt 0:01:36]} Be7 {[%emt 0:04:36]} 27. a3 {[%emt 0:00:28]} e5 {[%emt 0:01:00]} 28. Rd5 {[%emt 0:02:45]} f6 {[%emt 0:00:46]} 29. Kf1 {[%emt 0:01:18]} Kf7 {[%emt 0:00:25]} 30. Ke2 {[%emt 0:00:47]} Ke6 {[%emt 0:00:37]} 31. Ke3 {[%emt 0:02:47]} Bd6 {[%emt 0:02:42]} 32. Rd1 {[%emt 0:05:25]} Ke7 {[%emt 0:02:08]} 33. Ke4 {[%emt 0:02:17]} Rd7 {[%emt 0:01:47]} 34. Bb5 {[%emt 0:00:34]} Rd8 {[%emt 0:00:21]} 35. Bc6 {[%emt 0:01:04]} Rc8 {[%emt 0:01:47]} 36. Bd5 {[%emt 0:00:46]} Rd8 {[%emt 0:00:18]} 37. Rb1 {[%emt 0:01:18]} Rc8 {[%emt 0:01:34]} 38. a4 {[%emt 0:00:16]} Rb8 {[%emt 0:00:44]} 39. Rb3 {[%emt 0:00:50]} Bc7 {[%emt 0:00:43]} 40. c5 {[%emt 0:01:32]} bxc5 {[%emt 0:00:33]} 41. bxc5 {[%emt 0:00:05]} Rxb3 {[%emt 0:01:33]} 42. Bxb3 {[%emt 0:00:04]} Ba5 {[%emt 0:03:12]} 43. Bg8 {[%emt 0:00:57]} Bb4 {[%emt 0:01:43]} 44. Kd5 {[%emt 0:00:42]} h6 {[%emt 0:02:15]} 45. Kc6 {[%emt 0:01:15]} g5 {[%emt 0:01:31]} 46. Kb5 {[%emt 0:00:12]} Be1 {[%emt 0:00:31]} 47. f3 {[%emt 0:00:17]} Bf2 {[%emt 0:00:31]} 48. a5 {[%emt 0:00:33]} Kd7 {[%emt 0:01:05]} 49. Bd5 {[%emt 0:00:38]} Kc7 {[%emt 0:00:07]} 50. Be4 {[%emt 0:00:45]} Be1 {[%emt 0:02:02]} 51. g4 {[%emt 0:00:22]} Bc3 {[%emt 0:01:14]} 52. Ka6 {[%emt 0:00:44]} Bb4 {[%emt 0:00:43]} 53. Kb5 {[%emt 0:00:08]} Bc3 {[%emt 0:00:02]} 54. a6 {[%emt 0:00:30]} Bd4 {[%emt 0:01:04]} 55. Kc4 {[%emt 0:00:26]} Kd7 {[%emt 0:00:38]} 56. Kd5 {[%emt 0:00:12]} Ke7 {[%emt 0:01:39]} 57. Bf5 {[%emt 0:00:35]} Bf2 {[%emt 0:00:34]} 58. c6 {[%emt 0:01:04]} Bb6 {[%emt 0:00:28]} 59. Bd7 {[%emt 0:00:41]} Bc7 {[%emt 0:00:46]} 60. Ke4 {[%emt 0:00:29]} Kf7 {[%emt 0:01:45]} 61. h3 {[%emt 0:00:28]} Kg6 {[%emt 0:00:42]} 62. Be8+ {[%emt 0:00:06]} Kg7 {[%emt 0:00:02]} 63. Kf5 {[%emt 0:00:28]} Kf8 {[%emt 0:00:24]} 64. Bd7 {[%emt 0:01:08]} Kf7 {[%emt 0:00:49]} 65. Be6+ {[%emt 0:00:22]} Kg7 {[%emt 0:01:34]} 1-0

[Event "LJ Slovak Open 2022"]
[Site "Liptovsky Jan"]
[Date "2022.06.26"]
[Round "6.25"]
[White "Gajdosik, Marian"]
[Black "Saravanan Durga"]
[Result "0-1"]
[ECO "B51"]
[WhiteElo "1902"]
[BlackElo "1660"]
[Annotator "NA RC"]
[PlyCount "106"]
[EventDate "2022.06.23"]
[EventType "swiss"]
[EventCountry "SVK"]
[SourceTitle "playchess.com"]
[Source "ChessBase"]
[SourceQuality "1"]
[TimeControl "3600+30"]

1. e4 {[%emt 0:00:56]} c5 {[%emt 0:00:13]} 2. Nf3 {[%emt 0:00:07]} d6 {[%emt 0:00:04]} 3. Bb5+ {[%emt 0:00:06]} Nd7 {[%emt 0:01:00]} 4. c3 {[%emt 0:00:06]} Ngf6 {[%emt 0:02:45]} 5. d3 {[%emt 0:00:14]} a6 {[%emt 0:06:57]} 6. Ba4 {[%emt 0:00:06]} b5 {[%emt 0:05:26]} 7. Bc2 {[%emt 0:00:10]} Bb7 {[%emt 0:00:10]} 8. Nbd2 {[%emt 0:00:08]} g6 {[%emt 0:02:09]} 9. O-O {[%emt 0:02:38]} Bg7 {[%emt 0:00:05]} 10. Re1 {[%emt 0:00:12]} O-O {[%emt 0:00:21]} 11. Nf1 {[%emt 0:22:16]} Qc7 {[%emt 0:03:09]} 12. Ng3 {[%emt 0:01:10]} Rac8 {[%emt 0:03:34]} 13. a4 {[%emt 0:00:26]} b4 {[%emt 0:04:01]} 14. cxb4 {[%emt 0:04:58]} cxb4 {[%emt 0:00:18]} 15. Bb3 {[%emt 0:00:04]} Nc5 {[%emt 0:01:54]} 16. Bc4 {[%emt 0:01:33]} e6 {[%emt 0:22:52]} 17. Bf4 {[%emt 0:04:48]} Qc6 {[%emt 0:08:01]} 18. Nd4 {[%emt 0:01:26]} Qd7 {[%emt 0:01:10]} 19. Nb3 {[%emt 0:01:08]} d5 {[%emt 0:04:51]} 20. Nxc5 {[%emt 0:00:10]} Rxc5 {[%emt 0:00:03]} 21. exd5 {[%emt 0:00:38]} Nxd5 {[%emt 0:00:32]} 22. Be5 {[%emt 0:00:42]} Nb6 {[%emt 0:00:28]} 23. Bxg7 {[%emt 0:00:20]} Kxg7 {[%emt 0:00:02]} 24. Ne4 {[%emt 0:01:38]} Rcc8 {[%emt 0:00:23]} 25. b3 {[%emt 0:00:27]} Rfd8 {[%emt 0:01:18]} 26. Qe2 {[%emt 0:00:13]} Nxc4 {[%emt 0:00:33]} 27. dxc4 {[%emt 0:00:11]} Qd4 {[%emt 0:00:35]} 28. Ng3 {[%emt 0:00:54]} Qc3 {[%emt 0:00:38]} 29. Qe5+ {[%emt 0:00:08]} Qxe5 {[%emt 0:00:11]} 30. Rxe5 {[%emt 0:00:06]} Rd3 {[%emt 0:00:12]} 31. Re3 {[%emt 0:00:27]} Rxe3 {[%emt 0:00:41]} 32. fxe3 {[%emt 0:05:52]} Rd8 {[%emt 0:00:03]} 33. e4 {[%emt 0:00:09]} Rd3 {[%emt 0:00:57]} 34. Rb1 {[%emt 0:00:05]} h5 {[%emt 0:00:17]} 35. Rb2 {[%emt 0:03:53]} h4 {[%emt 0:00:05]} 36. Nf1 {[%emt 0:00:05]} Bxe4 {[%emt 0:00:11]} 37. Kf2 {[%emt 0:00:23]} h3 {[%emt 0:01:22]} 38. g3 {[%emt 0:01:58]} Rf3+ {[%emt 0:00:07]} 39. Ke2 {[%emt 0:00:18]} Rc3 {[%emt 0:00:09]} 40. Kd2 {[%emt 0:01:33]} f5 {[%emt 0:01:03]} 41. Ne3 {[%emt 0:00:16]} Kf6 {[%emt 0:00:21]} 42. Nc2 {[%emt 0:00:18]} Bxc2 {[%emt 0:00:17]} 43. Rxc2 {[%emt 0:00:06]} Rxb3 {[%emt 0:01:41]} 44. c5 {[%emt 0:00:05]} Ke7 {[%emt 0:00:14]} 45. c6 {[%emt 0:00:17]} Kd8 {[%emt 0:00:06]} 46. c7+ {[%emt 0:00:20]} Kc8 {[%emt 0:00:02]} 47. Rc6 {[%emt 0:00:32]} Rb2+ {[%emt 0:00:07]} 48. Kd3 {[%emt 0:01:38]} Rxh2 {[%emt 0:00:04]} 49. Rxe6 {[%emt 0:01:02]} b3 {[%emt 0:00:28]} 50. Rxa6 {[%emt 0:01:13]} b2 {[%emt 0:00:05]} 51. Rb6 {[%emt 0:00:07]} Kxc7 {[%emt 0:00:17]} 52. Rb4 {[%emt 0:00:07]} Rg2 {[%emt 0:00:19]} 53. Kc4 {[%emt 0:00:26]} h2 {[%emt 0:00:11]} 0-1

[Event "LJ Slovak Open 2022"]
[Site "Liptovsky Jan"]
[Date "2022.06.26"]
[Round "6.26"]
[White "Stric, Dusan"]
[Black "Sokolovsky, Jakub"]
[Result "0-1"]
[ECO "A22"]
[WhiteElo "2021"]
[BlackElo "1613"]
[Annotator "NA RC"]
[PlyCount "106"]
[EventDate "2022.06.23"]
[EventType "swiss"]
[EventCountry "SVK"]
[SourceTitle "playchess.com"]
[Source "ChessBase"]
[SourceQuality "1"]
[TimeControl "3600+30"]

1. c4 {[%emt 0:01:31]} e5 {[%emt 0:00:30]} 2. Nc3 {[%emt 0:00:30]} Nf6 {[%emt 0:00:02]} 3. g3 {[%emt 0:00:14]} Bb4 {[%emt 0:00:02]} 4. e3 {[%emt 0:00:23]} O-O {[%emt 0:00:02]} 5. Nge2 {[%emt 0:00:19]} d6 {[%emt 0:00:06]} 6. Bg2 {[%emt 0:01:26]} Nc6 {[%emt 0:00:10]} 7. O-O {[%emt 0:00:54]} Bg4 {[%emt 0:00:11]} 8. f3 {[%emt 0:00:57]} Bh5 {[%emt 0:00:06]} 9. b3 {[%emt 0:00:42]} Re8 {[%emt 0:00:20]} 10. Bb2 {[%emt 0:02:00]} a5 {[%emt 0:00:09]} 11. h3 {[%emt 0:03:55]} Bxc3 {[%emt 0:03:52]} 12. Bxc3 {[%emt 0:11:42]} h6 {[%emt 0:01:43]} 13. e4 {[%emt 0:17:07]} Nb4 {[%emt 0:01:23]} 14. a3 {[%emt 0:06:39]} Nc6 {[%emt 0:04:52]} 15. Qc2 {[%emt 0:03:10]} Qe7 {[%emt 0:04:11]} 16. d4 {[%emt 0:03:00]} exd4 {[%emt 0:00:21]} 17. Nxd4 {[%emt 0:00:45]} Nxd4 {[%emt 0:00:04]} 18. Bxd4 {[%emt 0:00:30]} Bg6 {[%emt 0:00:02]} 19. Qd2 {[%emt 0:03:01]} Nd7 {[%emt 0:02:17]} 20. Rae1 {[%emt 0:04:14]} Nc5 {[%emt 0:00:48]} 21. Qc3 {[%emt 0:00:33]} f6 {[%emt 0:04:02]} 22. Re2 {[%emt 0:02:15]} a4 {[%emt 0:07:53]} 23. b4 {[%emt 0:01:57]} Nb3 {[%emt 0:01:46]} 24. Bf2 {[%emt 0:00:18]} c6 {[%emt 0:10:22]} 25. f4 {[%emt 0:00:46]} d5 {[%emt 0:06:45]} 26. e5 {[%emt 0:01:25]} dxc4 {[%emt 0:04:08]} 27. Qxc4+ {[%emt 0:01:04]} Bf7 {[%emt 0:00:12]} 28. Qc2 {[%emt 0:01:01]} Rad8 {[%emt 0:01:53]} 29. Rfe1 {[%emt 0:01:20]} fxe5 {[%emt 0:00:49]} 30. Rxe5 {[%emt 0:00:53]} Qd6 {[%emt 0:00:35]} 31. Rxe8+ {[%emt 0:00:34]} Rxe8 {[%emt 0:04:59]} 32. Rd1 {[%emt 0:00:01]} Qe6 {[%emt 0:00:00]} 33. Bf1 {[%emt 0:00:51]} Kh8 {[%emt 0:02:20]} 34. f5 {[%emt 0:00:53]} Qe7 {[%emt 0:00:10]} 35. g4 {[%emt 0:00:31]} Qg5 {[%emt 0:01:11]} 36. Rd7 {[%emt 0:00:31]} Kg8 {[%emt 0:00:08]} 37. Rxb7 {[%emt 0:00:35]} Bd5 {[%emt 0:00:25]} 38. Qc3 {[%emt 0:00:19]} h5 {[%emt 0:02:14]} 39. Qg3 {[%emt 0:00:14]} hxg4 {[%emt 0:00:30]} 40. hxg4 {[%emt 0:00:30]} Nd2 {[%emt 0:00:04]} 41. Bg2 {[%emt 0:00:41]} Bxg2 {[%emt 0:04:27]} 42. Kxg2 {[%emt 0:00:11]} Ne4 {[%emt 0:00:19]} 43. Qh4 {[%emt 0:00:29]} Qf4 {[%emt 0:02:22]} 44. Rxg7+ {[%emt 0:00:36]} Kxg7 {[%emt 0:00:39]} 45. Bd4+ {[%emt 0:00:11]} Kf8 {[%emt 0:00:01]} 46. Qh8+ {[%emt 0:00:52]} Ke7 {[%emt 0:01:31]} 47. Qg7+ {[%emt 0:00:23]} Kd8 {[%emt 0:00:03]} 48. Bb6+ {[%emt 0:00:39]} Kc8 {[%emt 0:01:38]} 49. f6 {[%emt 0:00:09]} Qg3+ {[%emt 0:01:22]} 50. Kh1 {[%emt 0:00:25]} Qf3+ {[%emt 0:00:02]} 51. Kg1 {[%emt 0:00:53]} Qg3+ {[%emt 0:00:07]} 52. Kh1 {[%emt 0:00:30]} Nf2+ {[%emt 0:00:03]} 53. Bxf2 {[%emt 0:00:29]} Qxf2 {[%emt 0:00:02]} 0-1

[Event "LJ Slovak Open 2022"]
[Site "Liptovsky Jan"]
[Date "2022.06.26"]
[Round "6.27"]
[White "Magda, Filip"]
[Black "Korenova, Simona"]
[Result "0-1"]
[ECO "E01"]
[WhiteElo "1624"]
[BlackElo "1895"]
[Annotator "NA RC"]
[PlyCount "80"]
[EventDate "2022.06.23"]
[EventType "swiss"]
[EventCountry "SVK"]
[SourceTitle "playchess.com"]
[Source "ChessBase"]
[SourceQuality "1"]
[TimeControl "3600+30"]

1. d4 {[%emt 0:00:17]} d5 {[%emt 0:00:12]} 2. Nf3 {[%emt 0:00:04]} Nf6 {[%emt 0:00:19]} 3. c4 {[%emt 0:00:18]} c6 {[%emt 0:00:14]} 4. g3 {[%emt 0:00:12]} e6 {[%emt 0:00:16]} 5. Bg2 {[%emt 0:00:11]} Nbd7 {[%emt 0:00:29]} 6. O-O {[%emt 0:00:13]} Bd6 {[%emt 0:00:36]} 7. Nc3 {[%emt 0:00:11]} O-O {[%emt 0:00:18]} 8. Nd2 {[%emt 0:01:11]} dxc4 {[%emt 0:04:32]} 9. Nxc4 {[%emt 0:00:11]} Nb6 {[%emt 0:04:33]} 10. Nxd6 {[%emt 0:01:48]} Qxd6 {[%emt 0:00:07]} 11. e4 {[%emt 0:00:21]} e5 {[%emt 0:01:30]} 12. d5 {[%emt 0:03:25]} h6 {[%emt 0:03:35]} 13. b3 {[%emt 0:02:24]} cxd5 {[%emt 0:02:12]} 14. exd5 {[%emt 0:05:22]} Rd8 {[%emt 0:01:27]} 15. Bb2 {[%emt 0:05:33]} Nbxd5 {[%emt 0:06:28]} 16. Qe2 {[%emt 0:03:28]} Nxc3 {[%emt 0:03:50]} 17. Bxc3 {[%emt 0:00:07]} Re8 {[%emt 0:00:42]} 18. Rfd1 {[%emt 0:01:47]} Qc5 {[%emt 0:02:08]} 19. Rac1 {[%emt 0:01:00]} Bg4 {[%emt 0:02:31]} 20. Bf3 {[%emt 0:02:58]} Bxf3 {[%emt 0:01:04]} 21. Qxf3 {[%emt 0:00:05]} Qe7 {[%emt 0:00:31]} 22. Re1 {[%emt 0:02:30]} Rac8 {[%emt 0:01:58]} 23. Qe2 {[%emt 0:09:38]} Nd7 {[%emt 0:00:57]} 24. Qe3 {[%emt 0:01:51]} b6 {[%emt 0:00:45]} 25. f4 {[%emt 0:03:16]} e4 {[%emt 0:08:22]} 26. Qd4 {[%emt 0:05:00]} Nf6 {[%emt 0:01:06]} 27. Bb4 {[%emt 0:01:33]} Qe6 {[%emt 0:00:58]} 28. Ba3 {[%emt 0:04:37]} Rcd8 {[%emt 0:00:47]} 29. Qe3 {[%emt 0:00:44]} Qh3 {[%emt 0:03:24]} 30. Red1 {[%emt 0:04:35]} Rxd1+ {[%emt 0:04:20]} 31. Rxd1 {[%emt 0:00:08]} Qxh2+ {[%emt 0:01:10]} 32. Kxh2 {[%emt 0:01:25]} Ng4+ {[%emt 0:00:05]} 33. Kg1 {[%emt 0:01:57]} Nxe3 {[%emt 0:00:05]} 34. Rd2 {[%emt 0:01:25]} Nf5 {[%emt 0:00:59]} 35. Kg2 {[%emt 0:00:48]} e3 {[%emt 0:00:23]} 36. Rd1 {[%emt 0:02:53]} e2 {[%emt 0:00:44]} 37. Re1 {[%emt 0:00:05]} Nd4 {[%emt 0:00:06]} 38. Kf2 {[%emt 0:00:55]} Nc2 {[%emt 0:00:45]} 39. Rxe2 {[%emt 0:00:12]} Rxe2+ {[%emt 0:00:04]} 40. Kxe2 {[%emt 0:00:09]} Nxa3 {[%emt 0:00:03]} 0-1